Cogmind - Beta 12 X2 @@@ ROGUE MODE // 2022.12.11 @ 06:11:20 Player: deadnoob Result: Destroyed by G-47 Trooper with Particle Gun Performance ------------- Evolutions (0) 0 Regions Visited (2) 400 Robots Destroyed (19) 95 Value Destroyed (421) 421 Prototype IDs (1) 20 Alien Tech Used (0) 0 Bonus (0) 0 TOTAL SCORE: 936 Bonus ------- None Cogmind --------- Core Integrity 0/250 Matter 192/300 Energy 265/265 System Corruption 5% Temperature Cool (11) Movement Treading (160) Location -10/Mines Parts ------- > --- POWER (1) -------- Improved Ion Engine > --- PROPULSION (2) --- Improved Treads Improved Treads > --- UTILITY (2) ------ Large Storage Unit Propulsion Shielding > --- WEAPON (2) ------- Improved Assault Rifle Improved Assault Rifle > --- INVENTORY (15) --- Improved Ion Engine Light Treads Light Treads Light Treads Light Treads Improved Treads Improved Treads Light Armor Plating Light Armor Plating Assault Rifle Faulty Improved Assault Rifle Improved Assault Rifle Grenade Launcher Peak State ------------ > --- POWER ------------ Improved Ion Engine > --- PROPULSION ------- Improved Treads Improved Treads > --- UTILITY ---------- Improved Heat Sink Large Storage Unit > --- WEAPON ----------- Assault Rifle Improved Assault Rifle > --- INVENTORY -------- Improved Ion Engine Light Treads Light Treads Light Treads Improved Treads Improved Treads Wheel Medium Storage Unit Improved Assault Rifle Improved Assault Rifle Improved Assault Rifle Grenade Launcher [Rating: 16] Favorites ----------- Power Improved Ion Engine Engine Improved Ion Engine Propulsion Improved Treads Treads Improved Treads Leg Aluminum Leg Utility Large Storage Unit Device Improved Heat Sink Storage Large Storage Unit Protection Propulsion Shielding Weapon Assault Rifle Energy Gun Particle Gun Ballistic Gun Assault Rifle Launcher Grenade Launcher Build | -11 -10 -10 ------- Run | Scr Mat Min Slots Evolved . | . . . Power . | . . . Propulsion . | . . . Utility . | . . . Weapon . | . . . Parts Attached 19 | . 13 6 Power 1 | . 1 . Engine 1 | . 1 . Core . | . . . Reactor . | . . . Propulsion 2 | . 2 . Treads 2 | . 2 . Leg . | . . . Wheel . | . . . Hover . | . . . Flight . | . . . Utility 8 | . 5 3 Device 1 | . 1 . Storage 3 | . 3 . Processor . | . . . Hackware . | . . . Protection 4 | . 1 3 Artifact . | . . . Weapon 8 | . 5 3 Energy Gun 2 | . 2 . Energy Cannon . | . . . Ballistic Gun 5 | . 2 3 Ballistic Cannon . | . . . Launcher 1 | . 1 . Special Weapon . | . . . Impact Weapon . | . . . Slashing Weapon . | . . . Piercing Weapon . | . . . Special Melee Weapon . | . . . Unidentified Prototypes 1 | . 1 . Parts Lost 2 | . . 2 Power . | . . . Propulsion . | . . . Utility 1 | . . 1 Weapon 1 | . . 1 Highest Loss Streak 2 | . . 2 To Critical Strikes . | . . . Average Slot Usage (%) 98 | . 97 100 Engine 14 | . 14 14 Treads 19 | . 11 28 Leg 7 | . 15 . Device 4 | . 8 . Storage 14 | . 14 14 Protection 8 | . 3 14 Energy Gun 1 | . 3 . Ballistic Gun 26 | . 24 28 Naked Turns . | . . . Heaviest Build 35 | 14 35 35 Greatest Support 46 | 20 46 46 Greatest Overweight (x) 7 | . 7 . Average Overweight (x) . | . . . Largest Inventory Capacity 15 | . 15 15 Average Capacity 13 | . 11 15 Most Carried 15 | . 15 15 Average Carried 12 | . 10 14 Final Capacity 15 | 8 15 15 Final Carried 15 | 6 15 13 Class Distribution -------------------- 100% | Mutant Dominant Class ---------------- Mutant | -10/Materials Mutant | -10/Mines Resources | -11 -10 -10 ----------- Run | Scr Mat Min Matter Collected 533 | 200 73 260 Remotely . | . . . Salvage Created 497 | . 306 191 Parts 38 | . 22 16 Haulers Intercepted 2 | . 2 . Recyclers Shooed 1 | . 1 . Parts Field Recycled . | . . . Retrieved Matter . | . . . Parts Self-Destructed . | . . . Prevented . | . . . Kills | -11 -10 -10 ------- Run | Scr Mat Min Combat Hostiles Destroyed 15 | . 8 7 Guns 12 | . 5 7 AOE 3 | . 3 . Classes Destroyed 6 | . 3 3 Worker 1 | . . 1 Builder 1 | . . 1 Hauler 2 | . 2 . Swarmer 6 | . 3 3 Grunt 8 | . 5 3 Demolisher 1 | . . 1 Best Kill Streak 3 | . 3 3 Combat Bots Only 3 | . 3 3 Max Kills in Single Turn 1 | . 1 1 Gunslinging . | . . . Exploded 1 | . 1 . Melee . | . . . Uniques/NPCs Destroyed . | . . . Combat | -11 -10 -10 -------- Run | Scr Mat Min Damage Taken 1008 | . 350 658 Core 255 | . 107 148 Absorbed by Shields . | . . . Redirected to Shielding 69 | . . 69 Core Remaining (%) 100 | 100 . . Volleys Fired 43 | . 23 20 Largest 2 | . 2 2 Hottest 85 | . 85 46 Shots Fired 82 | . 43 39 Gun 79 | . 40 39 Cannon . | . . . Launcher 3 | . 3 . Special . | . . . Kinetic 75 | . 36 39 Thermal 4 | . 4 . Explosive 3 | . 3 . Electromagnetic . | . . . Robot Hit Streak 16 | . 15 16 Robot Miss Streak 2 | . 1 2 Penetration Max . | . . . Secondary Targets 1 | . . 1 Max Gunslinging Chain 1 | . . 1 Shots Hit Robots 63 | . 35 28 Core Hits 34 | . 22 12 Critical Kills . | . . . Critical Parts Destroyed 1 | . . 1 Critical Strikes 1 | . . 1 Destroy 1 | . . 1 Melee Attacks . | . . . Impact . | . . . Slashing . | . . . Piercing . | . . . Sneak Attacks . | . . . Combat Hostiles . | . . . Follow-up Attacks . | . . . Damage Inflicted 1172 | . 685 487 Guns 917 | . 454 463 Cannons . | . . . Explosions 231 | . 231 . Melee . | . . . Ramming 24 | . . 24 Kinetic 883 | . 420 463 Thermal 34 | . 34 . Explosive 231 | . 231 . Electromagnetic . | . . . Impact . | . . . Slashing . | . . . Piercing . | . . . Highest Corruption 5 | . 5 5 Average Corruption 5 | . 5 5 Corruption Purged . | . . . Corruption Blocked . | . . . Effects 18 | . 10 8 Message Errors 2 | . . 2 Matter Fused 5 | . 4 1 Heat Flow Errors 2 | . 1 1 Energy Discharges 5 | . 2 3 Data Loss (minor) 2 | . 1 1 Data Loss (major) 1 | . 1 . Alerts 1 | . 1 . Overload Shots . | . . . Overflow Damage . | . . . Projectiles . | . . . Explosions . | . . . Melee . | . . . Knockbacks 1 | . . 1 Impact 1 | . . 1 Kinetic . | . . . Secondary . | . . . Self-Inflicted Damage 18 | . 18 . Shots 1 | . 1 . Rammed 7 | . 1 6 Targets Rammed 8 | . 1 7 Kicked . | . . . Crushed 1 | . . 1 Highest Temperature 275 | . 242 275 Average Temperature 54 | . 41 65 Received Heat Transfer 330 | . 126 204 Siege Activations . | . . . Robots Corrupted . | . . . Combat Hostiles . | . . . Parts Fried . | . . . Impact Corruptions . | . . . Robots Melted . | . . . Combat Hostiles . | . . . Parts Melted . | . . . Heat Transferred 74 | . 74 . Parts Sabotaged . | . . . Parts Stolen . | . . . Parts Stripped . | . . . Power Chain Reactions . | . . . Missiles Intercepted . | . . . Alert | -11 -10 -10 ------- Run | Scr Mat Min Peak Influence 314 | . 211 314 Initial 64 | . . 64 Average 130 | . 116 145 Maximum Alert Level 1 | . 1 1 Low Security (%) 77 | . 74 79 Level 1 22 | . 25 20 Level 2 . | . . . Level 3 . | . . . Level 4 . | . . . Level 5 . | . . . High Security . | . . . Max Security . | . . . Squads Dispatched 4 | . 4 . Investigation 2 | . 2 . Extermination . | . . . Reinforcement 2 | . 2 . Assault . | . . . Garrison . | . . . Intercept . | . . . Searches Triggered . | . . . Construction Impeded . | . . . Haulers Reinforced . | . . . Active Scanning Responses . | . . . Cargo Convoy Interrupts . | . . . Stealth | -11 -10 -10 --------- Run | Scr Mat Min Distress Signals 1 | . 1 . Communications Jammed . | . . . Distress Signals . | . . . Times Spotted 38 | . 17 21 Peak Tracking Total 4 | . 4 3 Tactical Retreats 7 | . 3 4 Traps | -11 -10 -10 ------- Run | Scr Mat Min Traps Triggered 1 | . 1 . Indirectly . | . . . Trap Hack Attempts . | . . . Triggered . | . . . Disarmed . | . . . Reprogrammed . | . . . Reused . | . . . Traps Extracted . | . . . Installed . | . . . Triggered . | . . . Machines | -11 -10 -10 ---------- Run | Scr Mat Min Machines Disabled . | . . . Max in Single Turn . | . . . Machines Sabotaged . | . . . Overloaded Fab Kills . | . . . Hacking | -11 -10 -10 --------- Run | Scr Mat Min Machines Accessed 2 | . 2 . Terminals 1 | . 1 . Fabricators . | . . . Repair Stations . | . . . Recycling Units 1 | . 1 . Scanalyzers . | . . . Garrison Access . | . . . Total Hacks 4 | . 4 . Successful 3 | . 3 . Failed 1 | . 1 . Catastrophic . | . . . Database Lockouts . | . . . Manual 4 | . 4 . Terminals 3 | . 3 . Fabricators . | . . . Repair Stations . | . . . Recycling Units 1 | . 1 . Scanalyzers . | . . . Garrison Access . | . . . Terminal Hacks 2 | . 2 . Robot Analysis 1 | . 1 . Branch Access Points 1 | . 1 . Fabricator Hacks . | . . . Repair Station Hacks . | . . . Recycling Unit Hacks . | . . . Scanalyzer . | . . . Garrison Access Hacks . | . . . Unauthorized Hacks 1 | . 1 . Terminals . | . . . Fabricators . | . . . Repair Stations . | . . . Recycling Units 1 | . 1 . Tunnel 1 | . 1 . Scanalyzers . | . . . Garrison Access . | . . . Data Cores Recovered . | . . . Used . | . . . Hacking Detections 1 | . 1 . Full Trace Events . | . . . Feedback Events . | . . . Feedback Blocked . | . . . Robot Schematics Acquired . | . . . Robots Built . | . . . Authchips . | . . . Time . | . . . Total Robot Build Rating . | . . . Part Schematics Acquired . | . . . Parts Built . | . . . Authchips . | . . . Time . | . . . Total Part Build Rating . | . . . Parts Repaired . | . . . Time . | . . . Parts Recycled . | . . . Recycled Matter . | . . . Retrieved Matter . | . . . Retrieved Components . | . . . Parts Scanalyzed . | . . . Part Schematics Acquired . | . . . Parts Damaged . | . . . Bothacking | -11 -10 -10 ------------ Run | Scr Mat Min Used RIF Installer . | . . . Robots Hacked . | . . . Non-combat . | . . . Combat . | . . . Robot Hacks Applied . | . . . Relay Couplers Released . | . . . Fabnet Peak Effective % . | . . . Robots Rewired . | . . . Allies Hacked . | . . . Hacks Repelled . | . . . Allies | -11 -10 -10 -------- Run | Scr Mat Min Total Allies . | . . . Largest Group . | . . . Highest-Rated Group . | . . . Highest-Rated Ally . | . . . Total Orders . | . . . Ally Attacks . | . . . Total Damage . | . . . Kills . | . . . Allies Corrupted . | . . . Allies Melted . | . . . Intel | -11 -10 -10 ------- Run | Scr Mat Min Robot Analysis Total 1 | . 1 . Derelict Logs Recovered . | . . . Drone Launches . | . . . Drone Recoveries . | . . . Exploration | -11 -10 -10 ------------- Run | Scr Mat Min Turns Passed 1006 | . 499 507 Spaces Moved 476 | 1 239 236 Core 1 | . 1 . Treads 340 | . 104 236 Legs 135 | 1 134 . Wheels . | . . . Hover . | . . . Flight . | . . . Fastest Speed 120 | 120 120 160 Average Speed 160 | 120 160 160 Slowest Speed 400 | 120 400 160 Overloaded Moves . | . . . Propulsion Burnouts . | . . . Robots Hopped . | . . . Cave-ins Triggered . | . . . Exploration Rate (%) 30 | 2 42 47 Regions Visited 2 Branch Regions 1 Pre-discovered Areas 1 | . 1 . Known Exits Taken 1 | . 1 . Unknown Exits Taken 1 | 1 . . Scrap Searched . | . . . Spaces Dug . | . . . Terrain Destroyed 6 | . 6 . Melee . | . . . Projectile . | . . . AOE 6 | . 6 . Terrain Rammed . | . . . Walls Destroyed . | . . . Machines Disabled . | . . . Actions | -11 -10 -10 --------- Run | Scr Mat Min Total 639 | . 315 324 Wait 63 | . 14 49 Move 474 | . 238 236 Hop . | . . . Pick Up 17 | . 14 3 Fast Attach 5 | . 5 . Attach 3 | . . 3 Detach 1 | . 1 . Swap 11 | . 8 3 Drop 14 | . 11 3 Fire 43 | . 23 20 Melee . | . . . Ram . | . . . Kick . | . . . Crush 8 | . 1 7 Escape Stasis . | . . . Rewire . | . . . Trap . | . . . Miscellaneous . | . . . Route ------- -11/Scrapyard -10/Materials (discovered 2 exits: *Min x2) -10/Mines (discovered 1 exit: [*Mat]) History --------- Turn | Location | Event 1 | -11/Scrapyard | Discovered new exit (range 0) 1 | -11/Scrapyard | Entered Materials 12 | -10/Materials | Identified exit to Mines 94 | -10/Materials | Met 8R-AWN 318 | -10/Materials | Build established: Mutant 500 | -10/Materials | Entered Mines 502 | -10/Mines | Followed 8R-AWN into the Mines 604 | -10/Mines | Core integrity fell below 50% 644 | -10/Mines | Assembled infested the area 793 | -10/Mines | Core integrity fell below 20% 856 | -10/Mines | Found a hidden stash of uninstalled traps 895 | -10/Mines | Discovered new exit (range 6) 1007 | -10/Mines | Destroyed by G-47 Trooper with Particle Gun Last Messages --------------- 00773_ Slammed into R-06 Scavenger. 00787_ System corrupted: Energy discharge (-63). 00795_ G-34 Mercenary destroyed. 00798_ G-47 Trooper destroyed. 00801_ Acquired 38 matter. 00838_ S-10 Pest destroyed. 00844_ Acquired 18 matter. 00845_ S-10 Pest destroyed. 00856_ A stash of uninstalled traps is collected here! 00869_ Acquired 11 matter. 00872_ Acquired 15 matter. 00876_ System corrupted: Heat flow error (+294). 00895_ EXIT=FOUND 00906_ R-06 Scavenger collects Flight Unit. 00908_ System corrupted: Matter fused (-6). 00910_ R-06 Scavenger collects Lgt. Ion Engine. 00983_ Assault Rifle destroyed. 00993_ Propulsion Shielding destroyed. 00999_ G-34 Mercenary destroyed. 00999_ Switching to secondary target: G-47 Trooper. Map ----- +----------------------------------------------------+ | ??## #?????# ##### | | ??# ##???# #?? ? | | ??# ##### ###### #???? ? | | ???# & & #???????????? ? | | ????### & ## #???????????? ? | | ??????##### ## #???????????? #? | | ??????????# ### #????????????# ## | | ??????????# #?# #????????????# ? | | ??????????#[#?# #????????????# #? | | ??????????#[### ###??????????# #? | | ??????????#* = ####?####### #? | | ??????????##### ### #? | | ???????####??# ## ##### ## | | ??????## ##?# ## #???# | | ?????## #?## ## ### #???# | | ????## ##?# ##?####?# #???##### | | ????# ### ######### ###?????? | | ????# ## *= ##????? | | ?????# ###### %[ *%= #????? | | ?????## ##??# [! *!% #????? | | ??????### #??# ## ## # ? | | ????????## #??# ! ### #? # | | ????????## ####=*##?# ??# ##? | | ????????# ## !#??####? !% | | ????????# ##??????? | | ????????##@ ###??????????? # | | ?????????# #####?????????????? # | | ?????????# ####?????????????????? | | ?????????#!#??????????????????????# | | ?????????#%#??????????????????????? | | ????????? * ??????????????????????? | | ?????????"" ??????????????????????? | | ?????????"" ??????????????????????? | | ?????????""g??????????????????????? | | ????????? ??????????????????????? | | ??????????? ??????????????????????? | | ???????????#??????????????????????? | | ??????????????????????????????????? | | ??????????????????????????????????? | | ??????????????????????????????????? | | ??????????????????????????????????? | | ??????????????????????????????????? | | ??????????????????????????????????? | | ??????????????????????????????????? | | ??????????????????????????????????? | | ??????????????????????????????????? | | ??????????????????????????????????? | | ??????????????????????????????????? | | ??????????????????????????????????? | | ??????????????????????????????????? | +----------------------------------------------------+ Best States ------------- Heat Dissipation 39 Energy Generation 12 Energy Capacity 265 Matter Stores 300 Matter Capacity 300 Sight Range 16 Terrain Scan Density 10 Armor Coverage 150 Propulsion Shielding 33 Evasion (%) 55 Recoil Reduction 2 Item Schematics ----------------- None Robot Schematics ------------------ None Fabricated ------------ Nothing Alien Tech Used ----------------- None Achievements -------------- None Challenges ------------ None Game ------ Seed StormGodBlaster Manual? 0 Play Time 00:09:51 Cumulative 154.0 hours Start 2022.12.11 @ 06:03:01 End 2022.12.11 @ 06:11:20 Sessions 1 Manual Loads 0 Difficulty Rogue Special Mode None Game No. 195 Rogue 195 Adventurer 0 Explorer 0 Win Type - Total 2 Types 1/0/0/1/0/0/0/0/0 Lore% 76 Gallery% 77 Achievement% 62 Wizard Run 0 Options --------- ASCII 0 Keyboard 0 Movement Numpad Keybinds 0 Fullscreen 2 Font 18/SmallcapsGlow Map View 76x50 Tactical HUD 1 Map Filters NONE Filters NONE Steam 1 RUN: 55cccb46-4b22-4c4d-a272-5da4b7b34fa9